Cogmind - Beta 10.2 @@@ ROGUE MODE // 2021.09.12 @ 16:51:59 Player: John_Oxford Result: Destroyed by Y-45 Defender with Beam Rifle Performance ------------- Evolutions (1) 500 Regions Visited (4) 800 Robots Destroyed (41) 205 Value Destroyed (1327) 1327 Prototype IDs (2) 40 Alien Tech Used (0) 0 Bonus (56) 56 TOTAL SCORE: 2928 Bonus ------- High Alert Combat Kills 31 Follower Combat Kills 25 Cogmind --------- Core Integrity 0/400 Matter 174/300 Energy 300/400 System Corruption 2% Temperature Cool (6) Movement Walking (150) Ox1 Location -9/Storage Parts ------- > --- POWER (1) -------- (None) > --- PROPULSION (2) --- Aluminum Leg > --- UTILITY (4) ------ Medium Storage Unit Large Battery Shield Generator > --- WEAPON (2) ------- (None) > --- INVENTORY (8) ---- Signal Interpreter Peak State ------------ > --- POWER ------------ Ion Engine > --- PROPULSION ------- Aluminum Leg Aluminum Leg > --- UTILITY ---------- Improved Heat Sink Medium Storage Unit Gravity Neutralizing Apparatus Medium Armor Plating > --- WEAPON ----------- Heavy EM Pulse Gun Beam Rifle > --- INVENTORY -------- Light Nuclear Core Aluminum Leg Aluminum Leg Heat Shielding Large Battery Signal Interpreter Shield Generator Rocket Launcher [Rating: 20] Favorites ----------- Power Ion Engine Engine Ion Engine Power Core Light Nuclear Core Propulsion Aluminum Leg Leg Aluminum Leg Utility Medium Storage Unit Device Improved Heat Sink Storage Medium Storage Unit Protection Medium Armor Plating Weapon Heavy EM Pulse Gun Energy Gun Heavy EM Pulse Gun Ballistic Gun Light Assault Rifle Launcher Rocket Launcher Build | -11 -10 -10 -9 -9 ------- Run | Scr Mat Min Mat Sto Slots Evolved 2 | . . . 2 . Power . | . . . . . Propulsion . | . . . . . Utility 2 | . . . 2 . Weapon . | . . . . . Parts Attached 43 | 6 6 2 9 20 Power 4 | 1 1 . . 2 Engine 3 | 1 1 . . 1 Core 1 | . . . . 1 Reactor . | . . . . . Propulsion 9 | 2 2 1 1 3 Treads . | . . . . . Leg 9 | 2 2 1 1 3 Wheel . | . . . . . Hover . | . . . . . Flight . | . . . . . Utility 13 | 1 1 . 4 7 Device 9 | . 1 . 2 6 Storage 3 | 1 . . 1 1 Processor . | . . . . . Hackware . | . . . . . Protection 1 | . . . 1 . Artifact . | . . . . . Weapon 17 | 2 2 1 4 8 Energy Gun 9 | 1 1 1 4 2 Energy Cannon . | . . . . . Ballistic Gun 4 | 1 1 . . 2 Ballistic Cannon . | . . . . . Launcher 4 | . . . . 4 Special Weapon . | . . . . . Impact Weapon . | . . . . . Slashing Weapon . | . . . . . Piercing Weapon . | . . . . . Special Melee Weapon . | . . . . . Unidentified Prototypes 2 | . . . . 2 Parts Lost 24 | . 7 . . 17 Power 3 | . 1 . . 2 Propulsion 4 | . 1 . . 3 Utility 6 | . 1 . . 5 Weapon 11 | . 4 . . 7 Highest Loss Streak 8 | . 4 . . 8 Average Slot Usage (%) 85 | . 78 64 92 83 Engine 8 | . 9 14 11 4 Core 2 | . . . . 4 Leg 22 | . 26 28 22 20 Device 9 | . 5 . 6 14 Storage 18 | . 14 14 21 18 Protection 4 | . . . 8 3 Energy Gun 14 | . 8 7 21 10 Ballistic Gun 4 | . 12 . . 3 Launcher 1 | . . . . 4 Naked Turns . | . . . . . Heaviest Build 35 | 13 13 10 31 35 Greatest Support 32 | 20 20 20 20 32 Greatest Overweight (x) 2 | . . . 1 2 Average Overweight (x) . | . . . . . Largest Inventory Capacity 10 | 6 6 6 10 10 Average Capacity 8 | 4 6 6 9 8 Most Carried 10 | 4 6 5 10 10 Average Carried 6 | 3 5 4 8 5 Final Capacity 10 | 6 6 6 10 8 Final Carried 10 | 4 6 4 10 1 Class Distribution -------------------- 100% | Mutant Dominant Class ---------------- Mutant | -10/Materials Mutant | -10/Mines Mutant | -9/Materials Mutant | -9/Storage Resources | -11 -10 -10 -9 -9 ----------- Run | Scr Mat Min Mat Sto Matter Collected 739 | 254 153 . 110 222 Remotely . | . . . . . Salvage Created 1596 | . 456 . 250 890 Parts 101 | . 26 . 12 63 Haulers Intercepted 1 | . 1 . . . Recyclers Shooed 4 | . 1 . . 3 Parts Field Recycled . | . . . . . Retrieved Matter . | . . . . . Parts Self-Destructed . | . . . . . Prevented . | . . . . . Kills | -11 -10 -10 -9 -9 ------- Run | Scr Mat Min Mat Sto Combat Hostiles Destroyed 37 | . 8 . 5 24 Guns 26 | . 8 . 5 13 AOE 11 | . . . . 11 Classes Destroyed 8 | . 4 . 1 3 Worker 1 | . . . . 1 Hauler 1 | . 1 . . . Recycler 2 | . 2 . . . Swarmer 6 | . 3 . . 3 Grunt 18 | . 5 . 3 10 Brawler 2 | . . . . 2 Duelist 2 | . . . . 2 Sentry 9 | . . . 2 7 Best Kill Streak 6 | . 3 . 3 6 Combat Bots Only 6 | . 3 . 3 6 Max Kills in Single Turn 2 | . 1 . 1 2 Gunslinging . | . . . . . Exploded 2 | . . . . 2 Melee . | . . . . . Uniques/NPCs Destroyed . | . . . . . Combat | -11 -10 -10 -9 -9 -------- Run | Scr Mat Min Mat Sto Damage Taken 2961 | . 868 . 222 1871 Core 628 | . 222 . 19 387 Absorbed by Shields 231 | . . . . 231 Core Remaining (%) 55 | 100 . 11 . . Volleys Fired 141 | 2 61 . 10 68 Largest 2 | 1 2 . 2 2 Hottest 101 | 50 70 . 101 101 Shots Fired 214 | 2 94 . 20 98 Gun 198 | 2 94 . 20 82 Cannon . | . . . . . Launcher 16 | . . . . 16 Special . | . . . . . Kinetic 93 | . 70 . . 23 Thermal 44 | 2 24 . 9 9 Explosive 16 | . . . . 16 Electromagnetic 61 | . . . 11 50 Robot Hit Streak 19 | . 14 . 19 15 Robot Miss Streak 4 | 2 4 . 1 4 Penetration Max . | . . . . . Secondary Targets 3 | . 1 . . 2 Max Gunslinging Chain 1 | . 1 . . 1 Shots Hit Robots 142 | . 61 . 18 63 Core Hits 81 | . 27 . 9 45 Critical Hits . | . . . . . Critical Kills . | . . . . . Critical Parts Destroyed . | . . . . . Melee Attacks . | . . . . . Impact . | . . . . . Slashing . | . . . . . Piercing . | . . . . . Sneak Attacks . | . . . . . Combat Hostiles . | . . . . . Follow-up Attacks . | . . . . . Damage Inflicted 2750 | 13 644 . 232 1861 Guns 1651 | 13 637 . 224 777 Cannons . | . . . . . Explosions 1077 | . . . . 1077 Melee . | . . . . . Ramming 22 | . 7 . 8 7 Kinetic 680 | . 423 . . 257 Thermal 456 | 13 214 . 71 158 Explosive 963 | . . . . 963 Electromagnetic 629 | . . . 153 476 Impact . | . . . . . Slashing . | . . . . . Piercing . | . . . . . Highest Corruption 2 | . . . . 2 Average Corruption 2 | . . . . 2 Corruption Purged . | . . . . . Effects 12 | . . . . 12 Message Errors 4 | . . . . 4 Heat Flow Errors 1 | . . . . 1 Data Loss (minor) 3 | . . . . 3 Targeting Errors 4 | . . . . 4 Overload Shots . | . . . . . Overflow Damage 68 | . . . . 68 Projectiles . | . . . . . Explosions 68 | . . . . 68 Melee . | . . . . . Knockbacks . | . . . . . Impact . | . . . . . Kinetic . | . . . . . Secondary . | . . . . . Self-Inflicted Damage 175 | . 2 . . 173 Shots 4 | . . . . 4 Rammed 5 | . 3 . . 2 Targets Rammed 9 | . 5 . 2 2 Kicked 4 | . 2 . 2 . Crushed . | . . . . . Highest Temperature 210 | . 210 . 14 185 Average Temperature 48 | . 84 . 8 40 Received Heat Transfer 1124 | . 411 . 66 647 Siege Activations . | . . . . . Robots Corrupted . | . . . . . Combat Hostiles . | . . . . . Parts Fried 2 | . . . . 2 Impact Corruptions . | . . . . . Robots Melted . | . . . . . Combat Hostiles . | . . . . . Parts Melted 3 | . 2 . 1 . Heat Transferred 1030 | 37 558 . 174 261 Parts Sabotaged . | . . . . . Parts Stolen . | . . . . . Parts Stripped . | . . . . . Power Chain Reactions 1 | . . . . 1 Missiles Intercepted . | . . . . . Alert | -11 -10 -10 -9 -9 ------- Run | Scr Mat Min Mat Sto Peak Influence 457 | . 197 . 145 457 Initial 61 | . . . . 61 Average 120 | . 108 . 31 216 Maximum Alert Level 2 | . . . . 2 Low Security (%) 80 | 100 100 100 100 50 Level 1 15 | . . . . 38 Level 2 4 | . . . . 10 Level 3 . | . . . . . Level 4 . | . . . . . Level 5 . | . . . . . High Security . | . . . . . Max Security . | . . . . . Squads Dispatched 5 | . 2 . . 3 Investigation . | . . . . . Extermination . | . . . . . Reinforcement 3 | . 2 . . 1 Assault 2 | . . . . 2 Garrison . | . . . . . Intercept . | . . . . . Construction Impeded . | . . . . . Haulers Reinforced . | . . . . . Stealth | -11 -10 -10 -9 -9 --------- Run | Scr Mat Min Mat Sto Distress Signals 1 | . . . . 1 Communications Jammed . | . . . . . Distress Signals . | . . . . . Times Spotted 59 | . 15 . 6 38 Peak Tracking Total 9 | . 7 . 3 9 Tactical Retreats 4 | . . . . 4 Traps | -11 -10 -10 -9 -9 ------- Run | Scr Mat Min Mat Sto Traps Triggered 4 | . . . 3 1 Indirectly . | . . . . . Trap Hack Attempts . | . . . . . Triggered . | . . . . . Disarmed . | . . . . . Reprogrammed . | . . . . . Reused . | . . . . . Traps Extracted . | . . . . . Installed . | . . . . . Triggered . | . . . . . Machines | -11 -10 -10 -9 -9 ---------- Run | Scr Mat Min Mat Sto Machines Disabled 3 | . . . . 3 Max in Single Turn 1 | . . . . 1 Machines Sabotaged . | . . . . . Garrisons Compromised . | . . . . . Overloaded Fab Kills . | . . . . . Fab Network Shutdowns . | . . . . . Hacking | -11 -10 -10 -9 -9 --------- Run | Scr Mat Min Mat Sto Machines Accessed 2 | . . . . 2 Terminals 2 | . . . . 2 Fabricators . | . . . . . Repair Stations . | . . . . . Recycling Units . | . . . . . Scanalyzers . | . . . . . Garrison Access . | . . . . . Total Hacks 2 | . . . . 2 Successful 2 | . . . . 2 Failed . | . . . . . Catastrophic . | . . . . . Database Lockouts . | . . . . . Manual . | . . . . . Terminals 2 | . . . . 2 Fabricators . | . . . . . Repair Stations . | . . . . . Recycling Units . | . . . . . Scanalyzers . | . . . . . Garrison Access . | . . . . . Terminal Hacks 2 | . . . . 2 Open Door 2 | . . . . 2 Fabricator Hacks . | . . . . . Repair Station Hacks . | . . . . . Recycling Unit Hacks . | . . . . . Scanalyzer . | . . . . . Garrison Access Hacks . | . . . . . Unauthorized Hacks . | . . . . . Terminals . | . . . . . Fabricators . | . . . . . Repair Stations . | . . . . . Recycling Units . | . . . . . Scanalyzers . | . . . . . Garrison Access . | . . . . . Data Cores Recovered . | . . . . . Used . | . . . . . Hacking Detections 1 | . . . . 1 Full Trace Events . | . . . . . Feedback Events . | . . . . . Feedback Blocked . | . . . . . Robot Schematics Acquired . | . . . . . Robots Built . | . . . . . Matter . | . . . . . Time . | . . . . . Total Robot Build Rating . | . . . . . Part Schematics Acquired . | . . . . . Parts Built . | . . . . . Matter . | . . . . . Time . | . . . . . Total Part Build Rating . | . . . . . Parts Repaired . | . . . . . Time . | . . . . . Parts Recycled . | . . . . . Recycled Matter . | . . . . . Retrieved Matter . | . . . . . Retrieved Components . | . . . . . Parts Scanalyzed . | . . . . . Part Schematics Acquired . | . . . . . Parts Damaged . | . . . . . Bothacking | -11 -10 -10 -9 -9 ------------ Run | Scr Mat Min Mat Sto Used RIF Installer . | . . . . . Robots Hacked . | . . . . . Non-combat . | . . . . . Combat . | . . . . . Robot Hacks Applied . | . . . . . Relay Couplers Released . | . . . . . Robots Rewired . | . . . . . Allies Hacked . | . . . . . Hacks Repelled . | . . . . . Allies | -11 -10 -10 -9 -9 -------- Run | Scr Mat Min Mat Sto Total Allies 2 | . . . . 2 Largest Group 2 | . . . . 2 Highest-Rated Group 62 | . . . . 62 Highest-Rated Ally 31 | . . . . 31 Total Orders . | . . . . . Ally Attacks 13 | . . . . 13 Total Damage 163 | . . . . 163 Kills 1 | . . . . 1 Allies Corrupted . | . . . . . Allies Melted . | . . . . . Intel | -11 -10 -10 -9 -9 ------- Run | Scr Mat Min Mat Sto Robot Analysis Total . | . . . . . Derelict Logs Recovered . | . . . . . Drone Launches 8 | . . . . 8 Drone Recoveries 5 | . . . . 5 Exploration | -11 -10 -10 -9 -9 ------------- Run | Scr Mat Min Mat Sto Turns Passed 1929 | 71 407 11 670 770 Spaces Moved 1013 | 51 181 8 415 358 Core 10 | 10 . . . . Treads . | . . . . . Legs 1003 | 41 181 8 415 358 Wheels . | . . . . . Hover . | . . . . . Flight . | . . . . . Fastest Speed 50 | 50 120 120 120 120 Average Speed 139 | 106 120 120 147 146 Slowest Speed 180 | 120 120 120 150 180 Overloaded Moves . | . . . . . Propulsion Burnouts . | . . . . . Robots Hopped . | . . . . . Cave-ins Triggered . | . . . . . Exploration Rate (%) 24 | 4 30 7 27 54 Regions Visited 4 Branch Regions 2 Pre-discovered Areas . | . . . . . Known Exits Taken . | . . . . . Unknown Exits Taken 4 | 1 1 1 1 . Scrap Searched . | . . . . . Spaces Dug . | . . . . . Terrain Destroyed 146 | . . . . 146 Melee . | . . . . . Projectile . | . . . . . AOE 146 | . . . . 146 Terrain Rammed . | . . . . . Walls Destroyed . | . . . . . Machines Disabled . | . . . . . Actions | -11 -10 -10 -9 -9 --------- Run | Scr Mat Min Mat Sto Total 1321 | 63 286 9 457 506 Wait 56 | . 20 . 2 34 Move 1009 | 50 180 7 414 358 Hop . | . . . . . Pick Up 38 | 5 8 . 12 13 Fast Attach 10 | 5 2 . 1 2 Attach 23 | 1 2 2 3 15 Detach 1 | . . . . 1 Swap 10 | . 2 . 5 3 Drop 24 | . 6 . 8 10 Fire 141 | 2 61 . 10 68 Melee . | . . . . . Ram . | . . . . . Kick 9 | . 5 . 2 2 Crush . | . . . . . Escape Stasis . | . . . . . Rewire . | . . . . . Trap . | . . . . . Miscellaneous . | . . . . . Route ------- -11/Scrapyard -10/Materials -10/Mines -9/Materials (discovered 2 exits: [*Min] / *Sto) -9/Storage History --------- Turn | Location | Event 6 | -11/Scrapyard | Discovered new exit (range 15) 72 | -11/Scrapyard | Entered Materials 72 | -10/Materials | Discovered new exit (range 7) 212 | -10/Materials | Core integrity fell below 50% 327 | -10/Materials | Build established: Mutant 429 | -10/Materials | Core integrity fell below 20% 474 | -10/Materials | Lost 4 parts (1n1u2w) 479 | -10/Materials | Entered Mines 481 | -10/Mines | Discovered new exit (range 7) 490 | -10/Mines | Entered Materials 490 | -9/Materials | Evolved 2 slots: Utility x2 1003 | -9/Materials | Discovered new exit (range 6) 1024 | -9/Materials | Discovered new exit (range 16) 1160 | -9/Materials | Entered Storage 1596 | -9/Storage | Lost 3 parts (2u1w) 1629 | -9/Storage | Met a pair of Derelict thieves 1730 | -9/Storage | Core integrity fell below 50% 1801 | -9/Storage | Lost 8 parts (1p2n1u4w) 1819 | -9/Storage | Core integrity fell below 20% 1930 | -9/Storage | Destroyed by Y-45 Defender with Beam Rifle Last Messages --------------- 01763_ R-06 Scavenger collects Core Shielding. 01770_ Imp. Assault Rifle destroyed. 01778_ ZQJTHYI%FHE& YPEG>Z8V95GNJDGDO 01818_ Acquired Shield Generator. 01820_ Acquired Grenade Launcher. 01821_ Aluminum Leg destroyed. 01838_ Imp. Ion Engine destroyed. 01841_ G-34 Mercenary destroyed. 01845_ Y-45 Defender destroyed. 01845_ G-34 Mercenary destroyed. 01847_ G-47 Trooper destroyed. 01847_ B-36 Bruiser destroyed. 01855_ The unstable cave ceiling collapses. 01856_ Y-45 Defender destroyed. 01857_ System corrupted: Component data lost. 01857_ The unstable cave ceiling collapses. 01857_ Aluminum Leg crushed. 01859_ The unstable cave ceiling collapses. 01864_ Acquired 30 matter. 01914_ Grenade Launcher destroyed. Map ----- +----------------------------------------------------+ | | | ???????????#######???########??????????# | | ???????????# """ ???# # #?????????## | | ???????????#= """ #### #?????????# | | ???????????# """ ## = ####### % | | ???????????# + = !* | | ???????????# % # # ####### # # | | ???????????# # #?????????? | | ???????????######## # ## ##??????????? | | ??????????????????# # ##???????????? | | ??????????????????# #! #????????????? | | ??????????????????# # #????????????? | | ??????????????????# #! #???????????## | | ??????????????????# # ! #???????????#! | | ??????????????????# #] #???????????# | | ??????????????????# # % #???????????#! | | ??????????"""?????# ## #####??????????# | | ??????????"R"##???# +??????????## | | ??????????" "# ####### #####???????????# | | ?????????? Y #??# #??????????????# | | ?????????? #??# #??????????????? | | ??????????"""" #??# #?????????###### | | ????????? """" #??# #?????????# | | ????????+ """" #??## ##?????????# | | ????????#a"""" #???# #??????????# | | ????????# @ ##### ##### # | | ????????# "T"" + # | | ????????# """" ########### # | | ????????##########????????????????# | | ??????????????????????????????????# | | ??????????????????????????????????# | | ??????????????????????????????????# | | ??????????????????????????????????###### | | ??????????????????????????????????# | | ??????????????????????????????????# """ | | ??????????????????????????????? + """ | | ????????????????????????????????? # """ | | ??????????????????????????????????# | | ??????????????????????????????????###### | | ????????????????????????????????????#### | | ????????????????????????????????????# | | ????????????????????????????????????# "" | | ????????????????????????????????????# "" | | ????????????????????????????????????# "" | | ????????????????????????????????????# | | ????????????????????????????????????# "" | | ????????????????????????????????????# "T | | ????????????????????????????????????# "" | | ????????????????????????????????????# | | ????????????????????????????????????### | +----------------------------------------------------+ Best States ------------- Heat Dissipation 42 Energy Generation 14 Energy Capacity 565 Matter Stores 300 Matter Capacity 300 Sight Range 16 Robot Scan Range 10 Terrain Scan Density 10 Armor Coverage 225 Evasion (%) 50 Item Schematics ----------------- None Robot Schematics ------------------ None Fabricated ------------ Nothing Alien Tech Used ----------------- None Achievements -------------- None Challenges ------------ None Game ------ Seed TitaniumMassPenetrator Manual? 0 Play Time 00:17:17 Cumulative 5.6 hours Start 2021.09.12 @ 16:36:53 End 2021.09.12 @ 16:51:59 Sessions 1 Manual Loads 0 Difficulty Rogue Special Mode None Game No. 18 Rogue 18 Adventurer 0 Explorer 0 Win Type - Total 0 Types 0/0/0/0/0/0/0/0/0 Lore% 3 Gallery% 15 Achievement% 11 Wizard Run 0 Options --------- ASCII 0 Keyboard 0 Movement Arrows Keybinds 0 Fullscreen 1 Font 24/Smallcaps Map View 76x50 Tactical HUD 1 Map Filters NONE Filters NONE Steam 1 RUN: 2c127be5-cfe3-43f6-8c49-f411187e99b2